bitfinex/quotes_ETHUSD_20210701
["timestamp","ask_amount","ask_price","bid_price","bid_amount"]
[1625110303717,12.02752854,2194.2,2193.2,6.58766]
[1625110303921,4.2831,2194.2,2193.2,6.58766]
[1625110304317,4.4231,2194.2,2193.2,6.58766]
[1625110304421,12.19361112,2194.2,2193.2,6.58766]
[1625110304617,0.08,2194.1,2193.2,6.58766]
[1625110304717,0.19283081,2194.1,2193.2,6.58766]
[1625110305118,0.11283081,2194.1,2193.2,6.58766]
[1625110305523,5.01,2194.0,2192.7,0.14]
[1625110305672,0.31247165,2193.8,2192.6,11.39342]
[1625110305869,0.14,2193.7,2192.6,11.39342]
[1625110305969,0.18882198,2193.6,2192.6,11.39342]
[1625110306168,0.32882198,2193.6,2192.6,11.39342]
[1625110307072,0.36882198,2193.6,2192.6,11.39342]
[1625110307169,0.18,2193.6,2192.6,11.39342]
[1625110307271,0.27108185,2193.6,2192.6,11.39342]
[1625110307469,0.14,2193.6,2192.6,11.39342]
[1625110308112,0.14,2193.6,2193.0,6.83917]
[1625110308551,0.14,2193.6,2192.6,11.39342]
[1625110308646,5.01,2193.5,2192.6,11.39342]
[1625110308752,0.04,2193.5,2192.6,11.39342]
[1625110308946,0.14,2193.6,2192.6,11.39342]
[1625110309149,5.01,2193.5,2192.6,11.39342]
[1625110309248,5.01,2193.5,2192.8,6.84005]
[1625110312401,0.14,2193.6,2192.8,6.84005]
[1625110312500,3.238,2193.7,2192.8,6.84005]
[1625110312600,3.8011,2193.8,2192.8,6.84005]
[1625110312601,0.14,2193.8,2192.8,6.84005]
[1625110312703,0.12045778,2194.1,2192.8,6.84005]
[1625110312899,0.26045778,2194.1,2192.8,6.84005]
[1625110313197,0.26045778,2194.1,2192.8,6.85120525]
[1625110313304,0.12045778,2194.1,2192.9,0.14]
[1625110313502,0.12045778,2194.1,2193.4,6.83805]
[1625110313600,0.12045778,2194.1,2193.4,11.00845]
[1625110313701,0.12045778,2194.1,2193.5,0.14]
[1625110313904,0.11283081,2194.1,2193.5,0.14]
[1625110314759,0.11283081,2194.1,2193.5,6.97697]
[1625110315264,0.11283081,2194.1,2193.5,6.83697]
[1625110315359,0.11283081,2194.1,2193.2,9.1174]
[1625110315458,4.96685519,2193.6,2193.2,0.14]
[1625110315558,4.96685519,2193.6,2193.0,10.8242]
[1625110315715,5.98285519,2193.6,2192.8,10.11669]
[1625110315812,5.98285519,2193.6,2192.8,9.11669]
[1625110316015,5.98285519,2193.6,2192.6,6.85]
[1625110316115,5.01,2193.4,2192.6,6.85]
[1625110316308,5.01,2193.3,2192.6,6.85]
[1625110316411,5.01,2193.3,2192.5,1.0]
[1625110316516,0.1457131,2193.4,2192.5,1.0]
[1625110316618,0.11285519,2193.6,2192.5,1.0]
[1625110316894,0.11285519,2193.6,2192.3,1.30181615]
[1625110317151,0.24028657,2193.6,2192.3,1.30181615]
[1625110317250,0.11285519,2193.6,2192.4,7.95549655]
[1625110317453,0.11285519,2193.6,2192.3,1.30181615]
[1625110317454,11.85018,2193.5,2192.3,10.42159615]
[1625110317553,7.6054143,2193.4,2192.3,1.16181615]
[1625110317651,7.7597064,2193.4,2192.3,1.16181615]
[1625110317803,5.01,2193.2,2192.3,1.16181615]
[1625110318101,7.6054143,2193.4,2192.3,1.16181615]
[1625110318206,7.6054143,2193.4,2192.4,7.76842899]
[1625110318299,0.14,2193.5,2192.4,7.76842899]
[1625110318506,0.14,2193.5,2192.4,7.80843996]
[1625110318700,0.18,2193.4,2192.4,7.80843996]
[1625110318902,0.14,2193.5,2192.3,1.16181615]
[1625110319003,0.43749704,2193.5,2192.3,1.16181615]
[1625110319162,9.05257841,2193.5,2192.3,1.16181615]
[1625110319253,0.16197396,2193.4,2192.3,1.16181615]
[1625110319348,5.01,2193.3,2192.3,1.16181615]
[1625110319446,0.13856732,2193.2,2192.3,1.16181615]
[1625110319551,5.14856732,2193.2,2192.3,1.16181615]
[1625110319649,5.28856732,2193.2,2192.3,1.16181615]
[1625110319748,8.07257535,2193.1,2192.3,1.16181615]
[1625110319854,6.84224,2192.9,2192.3,1.16181615]
[1625110319948,11.34864,2192.9,2192.3,1.16181615]
[1625110320048,5.01,2192.7,2192.3,1.16181615]
[1625110320349,5.01,2192.7,2192.3,1.06181615]
[1625110320648,5.01,2192.6,2192.3,1.06181615]
[1625110320748,5.05,2192.6,2192.3,1.06181615]
[1625110320949,0.04,2192.6,2192.3,1.06181615]
[1625110321046,10.37884,2192.8,2192.3,1.06181615]
[1625110321047,0.11289179,2192.7,2192.3,1.06181615]
[1625110321698,5.12289179,2192.7,2192.3,1.06181615]
[1625110321801,0.11289179,2192.7,2192.3,1.06181615]
[1625110322202,5.12289179,2192.7,2192.3,1.06181615]
[1625110322405,0.11289179,2192.7,2192.4,8.02039639]
[1625110322753,0.11289179,2192.7,2192.5,0.14]
[1625110322953,7.79569393,2193.7,2192.5,0.14]
[1625110323742,16.79198078,2193.7,2192.5,0.14]
[1625110323743,7.67106078,2193.7,2192.5,0.14]
[1625110323925,5.01,2193.5,2192.5,0.14]
[1625110324027,5.01,2193.6,2192.5,0.14]
[1625110324228,5.01,2193.7,2192.5,0.14]
[1625110324427,7.67264131,2193.6,2192.5,0.14]
[1625110324528,7.7606342,2193.6,2192.5,0.14]
[1625110324629,5.01,2193.8,2192.5,0.14]
[1625110324727,13.10577727,2193.7,2192.5,0.14]
[1625110324928,5.01,2193.5,2192.5,0.14]
[1625110325229,5.01,2193.7,2192.5,0.14]
[1625110325430,11.8497,2193.7,2192.5,6.97961]
[1625110325537,11.8497,2193.7,2192.6,7.88536644]
[1625110325734,11.8497,2193.7,2192.6,8.02536644]
[1625110326055,5.01,2193.7,2192.6,0.14]
[1625110326562,10.80660071,2194.0,2192.6,8.5941]
[1625110326659,0.11285824,2193.7,2192.7,10.54642391]
[1625110326760,0.11285824,2193.7,2192.7,15.55642391]
[1625110326859,0.11285824,2193.7,2192.8,0.16]
[1625110326956,0.11285824,2193.7,2192.8,0.3]
[1625110327058,0.11285824,2193.7,2192.8,0.14]
[1625110327761,0.11285824,2193.7,2193.1,6.8372]
[1625110328056,0.11285824,2193.7,2193.2,0.14]
[1625110329410,0.11285824,2193.7,2193.4,6.83652]
[1625110329611,0.11285824,2193.7,2193.5,0.14]
[1625110329915,6.83685,2194.5,2193.5,9.07564325]
[1625110330015,9.8505,2194.9,2193.6,0.04]
[1625110330116,9.11569,2195.2,2193.6,0.11349659]
[1625110330220,9.11569,2195.2,2193.6,0.07349659]
[1625110330313,0.14,2195.3,2193.7,0.14]
[1625110330458,7.71300646,2195.3,2193.8,0.09750609]
[1625110330660,41.6574,2195.4,2193.9,0.14]
[1625110330759,7.64394305,2195.3,2193.9,0.14]
[1625110331160,41.6574,2195.4,2193.9,0.14]
[1625110331260,6.83473,2195.3,2194.1,6.83447]
[1625110331359,10.2408,2195.4,2194.0,9.50139425]
[1625110331460,10.2408,2195.4,2194.1,0.14]
[1625110331564,10.5032,2195.5,2194.2,0.06738579]
[1625110331868,10.5032,2195.5,2194.1,0.10899357]
[1625110332081,9.8975,2195.7,2194.1,0.10899357]
[1625110332163,9.8975,2195.7,2194.2,0.14]
[1625110332270,0.14,2195.8,2194.3,0.19403758]
[1625110332364,28.9800639,2196.0,2194.3,9.33697251]
[1625110332465,18.1176639,2196.0,2194.4,4.246]
[1625110332563,18.1176639,2196.0,2194.5,0.15780253]
[1625110332745,0.11277293,2195.5,2194.6,0.14]
[1625110332898,0.11277293,2195.5,2194.9,6.83178]
[1625110332996,0.11277293,2195.5,2194.9,10.15498]
[1625110334199,0.11277293,2195.5,2195.0,0.14]
[1625110335397,0.11277293,2195.5,2195.1,6.83086]
[1625110335494,7.77415803,2196.3,2195.1,6.83086]
[1625110335600,7.82281458,2196.6,2195.1,6.97086]
[1625110335697,52.6404,2196.7,2195.2,9.31498852]
[1625110335698,31.4961,2196.7,2195.2,9.31498852]
[1625110335910,31.4961,2196.7,2195.3,0.14]
[1625110336003,21.2734,2196.7,2195.4,0.0302099]
[1625110336098,21.2734,2196.7,2195.4,3.7002099]
[1625110336210,10.8235,2196.7,2195.5,9.51268585]
[1625110336296,10.8309,2197.1,2195.6,0.05341391]
[1625110336398,10.8309,2197.1,2195.8,3.4]
[1625110336497,10.8309,2197.1,2195.8,9.37650693]
[1625110336798,0.14,2197.2,2195.8,9.37650693]
[1625110337000,0.14,2197.2,2196.2,3.7]
[1625110337101,6.82849,2197.4,2196.3,7.92510515]
[1625110337316,6.82849,2197.4,2196.2,8.7881]
[1625110337617,7.7124773,2197.3,2196.2,8.7881]
[1625110338025,7.7124773,2197.3,2196.2,3.7]
[1625110338120,0.1,2197.2,2196.2,3.7]
[1625110338230,2.32,2197.2,2196.2,1.00224932]
[1625110338322,24.02283673,2197.1,2195.6,0.00717273]
[1625110338647,0.22752967,2197.0,2195.6,0.00717273]
[1625110338837,0.36752967,2197.0,2195.6,0.00717273]
[1625110339032,5.01,2196.9,2195.6,0.00717273]
[1625110339133,5.15415604,2196.9,2195.6,0.00717273]
[1625110339491,0.14,2196.8,2195.6,0.00717273]
[1625110339591,6.83152,2196.4,2195.6,0.00717273]
[1625110339792,5.01,2196.5,2195.6,0.00717273]
[1625110339895,5.01,2196.4,2195.6,0.00717273]
[1625110340295,5.15,2196.7,2195.6,0.00717273]
[1625110340591,0.14,2196.7,2195.6,0.00717273]
[1625110340792,8.83969417,2196.9,2195.6,0.00717273]
[1625110341443,6.83054,2196.7,2195.6,0.00717273]
[1625110341545,11.88424,2196.7,2195.6,0.00717273]
[1625110341719,19.75948195,2196.7,2195.6,0.00717273]
[1625110342220,5.01,2196.5,2195.6,0.00717273]
[1625110342322,0.12928544,2196.4,2195.6,0.00717273]
[1625110342474,5.01,2196.5,2195.6,0.00717273]
[1625110342671,7.56972682,2196.4,2195.6,0.00717273]
[1625110342773,5.01,2196.2,2195.6,0.00717273]
[1625110342873,9.7527,2196.2,2195.6,0.00717273]
[1625110343070,5.01,2196.1,2195.6,0.00717273]
[1625110343273,5.01,2196.0,2195.6,0.00717273]
[1625110344106,5.01,2196.1,2195.6,0.00717273]
[1625110344512,5.01,2196.5,2195.6,0.00717273]
[1625110344662,20.6652,2196.7,2195.7,8.19249539]
[1625110344761,10.354,2196.8,2195.7,8.19249539]
[1625110344961,0.11271816,2196.0,2195.7,8.19249539]
[1625110345064,0.11271816,2196.0,2195.6,2.43857273]
[1625110345161,0.11271816,2196.0,2195.7,7.69259164]
[1625110345363,0.11271816,2196.0,2195.8,0.1]
[1625110345464,0.14,2197.0,2195.8,0.1]
[1625110345660,0.14,2197.0,2195.9,0.04]
[1625110345868,0.14,2197.0,2195.7,7.69259164]
[1625110345961,0.14,2197.0,2195.8,0.14]
[1625110346070,7.57873409,2197.1,2195.8,0.14]
[1625110346276,6.82954,2197.0,2195.8,0.14]
[1625110346777,8.12812809,2197.3,2195.8,0.14]
[1625110346976,7.98812809,2197.3,2195.8,0.14]
[1625110347178,29.61246922,2197.5,2195.8,0.14]
[1625110347376,7.70332775,2197.3,2195.8,0.14]
[1625110347478,21.69884,2197.5,2195.8,8.06841]
[1625110347580,10.313,2197.5,2195.9,14.86548894]
[1625110347677,17.93105839,2197.5,2196.0,5.01]
[1625110347780,10.313,2197.5,2196.1,9.16772562]
[1625110347881,10.313,2197.5,2196.1,9.1128995]
[1625110348077,10.313,2197.5,2196.2,0.14]
[1625110348178,31.2657,2197.7,2196.2,0.14]
[1625110348285,20.8741,2197.7,2196.3,5.01]
[1625110348387,0.14,2197.8,2196.4,9.08619734]
[1625110348504,0.14,2197.8,2196.4,9.2937272]
[1625110348684,5.01,2197.7,2196.4,9.2937272]
[1625110348786,5.01,2197.7,2196.4,0.14]
[1625110348885,7.66276146,2197.6,2196.4,0.14]
[1625110348985,0.09,2197.8,2196.4,0.14]
[1625110349986,0.09,2197.8,2195.9,9.10254]
[1625110350091,0.09,2197.8,2196.1,0.14]
[1625110350192,6.82857,2197.3,2196.1,0.14]
[1625110350389,8.1170617,2197.0,2196.1,0.14]
[1625110350594,13.1270617,2197.0,2196.1,0.14]
[1625110350764,8.1170617,2197.0,2196.1,0.14]
[1625110350841,5.01,2197.1,2196.1,0.14]
[1625110350940,5.01,2197.0,2196.1,0.14]
[1625110352751,8.04559396,2197.2,2196.1,0.14]
[1625110352977,8.04559396,2197.2,2196.1,8.13224568]
[1625110353170,8.04559396,2197.2,2196.1,0.14]
[1625110354397,6.82812,2197.1,2196.1,0.14]
[1625110354497,7.78644535,2197.0,2196.1,0.14]
[1625110354597,19.44866826,2197.1,2196.1,0.14]
[1625110354696,20.41926826,2197.1,2196.1,0.14]
[1625110354795,12.76752,2197.1,2196.1,0.14]
[1625110354897,20.53161378,2197.1,2196.1,0.14]
[1625110355447,20.41805779,2197.1,2196.1,0.14]
[1625110355742,11.79692,2197.1,2196.1,0.14]
[1625110356344,19.4701693,2197.1,2196.1,0.14]
[1625110356543,11.79692,2197.1,2196.1,0.14]
[1625110357243,19.61258904,2197.1,2196.1,0.14]
[1625110357344,5.01,2196.9,2196.1,0.14]
[1625110357446,1.106,2197.0,2196.1,0.14]
[1625110358407,7.93411,2197.0,2196.1,0.14]
[1625110359094,6.82811,2197.0,2196.1,0.14]
[1625110359696,7.681358,2196.9,2196.1,0.14]
[1625110359847,11.715758,2196.9,2196.1,0.14]
[1625110359943,6.8286,2196.8,2196.1,0.14]
[1625110364514,6.8286,2196.8,2196.1,8.04680971]
[1625110364616,6.82761,2197.0,2196.1,14.87449971]
[1625110366548,6.82761,2197.0,2196.1,6.96769]
[1625110366837,6.82761,2197.0,2196.1,14.65128409]
[1625110367134,6.82761,2197.0,2196.1,6.96769]
[1625110367340,6.82761,2197.0,2196.1,14.60057791]
[1625110367435,6.82761,2197.0,2196.1,6.96769]
[1625110367942,9.10453,2197.2,2196.1,14.70909515]
[1625110368041,5.01,2197.4,2196.2,0.08]
[1625110368242,5.01,2197.4,2196.3,0.14]
[1625110368440,17.75987262,2197.5,2196.3,0.14]
[1625110370465,6.82666,2197.4,2196.6,6.82659]
[1625110371165,6.82666,2197.4,2196.6,6.96659]
[1625110372521,9.10426,2197.6,2196.6,6.96659]
[1625110372624,35.8820883,2198.0,2196.6,16.01123785]
[1625110372720,31.3299,2198.0,2196.7,0.17852808]
[1625110372820,31.3299,2198.0,2196.7,3.92482808]
[1625110372921,31.3299,2198.0,2196.8,0.14]
[1625110373020,31.3299,2198.0,2196.8,0.16943403]
[1625110373119,28.02769143,2198.0,2196.8,0.16943403]
[1625110373225,20.4355,2198.0,2196.8,0.16943403]
[1625110373425,20.4355,2198.0,2196.8,0.14]
[1625110373618,28.01245415,2198.0,2196.8,0.14]
[1625110373724,20.4355,2198.0,2196.8,0.14]
[1625110374405,6.82529,2197.8,2197.0,6.82527]
[1625110374505,6.82529,2197.8,2196.8,9.10036]
[1625110374604,6.82529,2197.8,2196.9,0.14]
[1625110374804,20.4355,2198.0,2196.9,0.14]
[1625110375504,20.4355,2198.0,2197.0,14.10939]
[1625110375610,9.8647,2198.0,2197.3,0.8639]
[1625110375706,19.92372,2198.4,2197.3,4.4769]
[1625110375905,5.01,2198.2,2197.3,4.4769]
[1625110376706,6.82522,2197.8,2197.3,4.4769]
[1625110376805,14.1099,2198.2,2197.3,4.4769]
[1625110377105,17.52289,2198.2,2197.3,3.613]
[1625110377205,0.06,2198.1,2197.3,3.613]
[1625110377303,17.52289,2198.2,2197.3,3.613]
[1625110377404,20.935821,2198.2,2197.3,3.613]
[1625110377706,15.925821,2198.2,2197.3,3.613]
[1625110377807,12.512831,2198.2,2197.3,3.613]
[1625110378015,6.82487,2198.0,2197.3,3.613]
[1625110378116,0.14,2198.7,2197.4,8.89604734]
[1625110378218,11.37584,2198.8,2197.4,9.00824284]
[1625110378318,31.7192,2198.9,2197.6,5.01]
[1625110378413,10.3373,2198.9,2197.7,9.65943929]
[1625110378583,10.3373,2198.9,2197.7,9.79943929]
[1625110378779,7.89596125,2199.3,2197.7,9.79943929]
[1625110378875,10.8374,2199.4,2198.0,0.0779972]
[1625110379073,18.55640223,2199.4,2198.5,6.82027]
[1625110379173,10.8374,2199.4,2198.5,10.69047]
[1625110379282,10.7374,2199.4,2198.5,10.69047]
[1625110379375,9.8353,2199.5,2198.5,10.69047]
[1625110379476,6.82027,2199.6,2198.6,0.01774133]
[1625110379578,2.2269,2200.6,2198.7,5.01]
[1625110379579,0.14,2200.5,2198.7,5.01]
[1625110379676,0.14,2200.5,2198.8,9.99633396]
[1625110379775,0.14,2200.5,2198.8,18.43633396]
[1625110379776,7.58493833,2200.5,2198.8,18.43633396]
[1625110379880,21.5349,2200.6,2199.3,4.3586]
[1625110380018,10.8714,2200.6,2199.3,1.66424994]
[1625110380078,6.81857,2200.3,2199.4,0.14]
[1625110380372,19.9641,2200.6,2199.4,0.14]
[1625110380477,10.8714,2200.6,2199.4,0.14]
[1625110380674,7.60880072,2200.5,2199.4,0.14]
[1625110380916,10.8714,2200.6,2199.4,0.14]
[1625110381519,10.8714,2200.6,2199.4,6.95704]
[1625110381619,10.8714,2200.6,2199.4,11.96704]
[1625110381717,10.8714,2200.6,2199.5,5.01]
[1625110381816,10.8714,2200.6,2199.6,5.01]
[1625110381917,8.32111782,2200.8,2199.6,0.14]
[1625110382118,0.06,2200.7,2199.6,0.14]
[1625110382416,8.32111782,2200.8,2199.6,0.14]
[1625110382518,6.81762,2200.6,2199.6,0.14]
[1625110382617,6.81762,2200.6,2199.6,5.15]
[1625110383074,8.32111782,2200.8,2199.7,8.07076574]
[1625110383166,8.10571132,2201.1,2199.7,8.07076574]
[1625110383270,8.10571132,2201.1,2199.8,0.14]
[1625110383363,8.10571132,2201.1,2199.8,3.6972]
[1625110383563,14.92187132,2201.1,2199.9,7.69112936]
[1625110383855,14.92187132,2201.1,2200.0,0.14]
[1625110384352,14.92187132,2201.1,2199.9,7.69112936]
[1625110384457,5.01,2200.9,2200.0,0.14]
[1625110384554,5.9051833,2200.9,2200.0,0.14]
[1625110385323,5.01,2201.1,2200.0,0.14]
[1625110385416,6.81611,2200.9,2200.0,0.14]
[1625110386218,8.67841282,2201.2,2200.0,0.14]
[1625110386320,10.5516,2201.3,2200.0,0.14]
[1625110386415,10.5516,2201.3,2200.0,8.78972405]
[1625110386617,10.4116,2201.3,2200.2,5.01]
[1625110386718,11.36414,2201.4,2200.3,8.02720371]
[1625110386916,6.81532,2201.1,2200.3,8.02720371]
[1625110387319,32.15063,2201.7,2200.3,8.02720371]
[1625110387421,32.15063,2201.7,2200.5,5.01]
[1625110387422,11.36243,2201.7,2200.5,5.01]
[1625110387574,11.36243,2201.7,2200.6,0.14]
[1625110387675,30.6217,2202.0,2200.6,9.14598001]
[1625110387773,28.05082592,2202.0,2200.6,9.14598001]
[1625110387974,20.416,2202.0,2200.6,9.14598001]
[1625110388075,6.81359,2201.8,2200.8,5.01]
[1625110388177,10.5321,2202.0,2200.8,5.01]
[1625110388277,11.36026,2202.1,2200.9,8.46189291]
[1625110388382,8.39501809,2202.5,2200.9,12.83150245]
[1625110388485,19.08318819,2202.6,2200.9,12.83150245]
[1625110388828,18.94318819,2202.6,2200.9,12.83150245]
[1625110388928,18.94318819,2202.6,2201.1,5.01]
[1625110389024,18.94318819,2202.6,2201.2,8.38527317]
[1625110389125,18.94318819,2202.6,2201.2,0.14]
[1625110389224,6.81193,2202.5,2201.2,0.14]
[1625110389324,8.23970953,2202.4,2201.2,0.14]
[1625110390069,8.23970953,2202.4,2201.2,8.36135867]
[1625110390375,8.23970953,2202.4,2201.2,0.14]
[1625110391077,7.77909028,2202.6,2201.2,0.14]
[1625110391173,7.77909028,2202.6,2201.2,9.09463632]
[1625110391275,27.44847,2202.7,2201.2,9.09463632]
[1625110391276,34.89899104,2202.7,2201.2,9.09463632]
[1625110391381,34.89899104,2202.7,2201.4,5.01]
[1625110391475,14.30491769,2202.7,2201.5,8.3168102]
[1625110391576,14.30491769,2202.7,2201.5,8.4568102]
[1625110391671,7.49314769,2202.7,2201.5,8.4568102]
[1625110391776,21.6483,2202.9,2201.5,8.4568102]
[1625110391874,7.64058409,2202.8,2201.5,8.4568102]
[1625110392192,10.8177,2202.9,2201.5,8.4568102]
[1625110392293,10.8177,2202.9,2201.5,15.2669102]
[1625110392995,10.8177,2202.9,2201.7,5.01]
[1625110393095,10.7177,2202.9,2201.8,8.21044368]
[1625110393195,6.81042,2203.0,2201.8,8.21044368]
[1625110393502,5.01,2202.8,2201.8,8.21044368]
[1625110393698,10.0564,2203.2,2201.8,8.21044368]
[1625110393798,21.69223,2203.3,2201.9,0.21129595]
[1625110393799,10.338,2203.3,2201.9,0.21129595]
[1625110393896,27.4764,2203.4,2201.9,0.21129595]
[1625110393897,17.0267,2203.4,2202.1,9.44584615]
[1625110393999,17.99541646,2203.7,2202.1,9.44584615]
[1625110394147,17.99541646,2203.7,2202.3,0.05241314]
[1625110394328,7.60441646,2203.7,2202.3,9.08020791]
[1625110394420,7.60441646,2203.7,2202.3,0.19241314]
[1625110394822,7.4,2203.6,2202.1,0.31224858]
[1625110394920,7.92787081,2203.5,2202.2,0.14]
[1625110395024,10.8966,2203.8,2202.3,0.14]
[1625110395025,8.27743571,2203.7,2202.3,0.14]
[1625110395119,8.27743571,2203.7,2202.1,5.01]
[1625110395220,8.27743571,2203.7,2202.3,0.14]
[1625110395319,5.01,2203.5,2202.3,0.14]
[1625110395419,7.49270688,2203.4,2202.3,0.14]
[1625110395621,5.01,2203.2,2202.3,0.14]
[1625110395727,9.10940971,2203.1,2202.3,0.14]
[1625110395826,14.11940971,2203.1,2201.8,0.00696076]
[1625110395925,14.27940971,2203.1,2202.1,0.14]
[1625110396175,5.01,2203.1,2202.1,0.14]
[1625110396374,12.44845464,2203.1,2202.1,0.14]
[1625110396617,5.01,2203.1,2202.1,0.14]
[1625110396713,13.32715542,2203.4,2202.1,0.14]
[1625110396811,13.37946052,2203.3,2202.1,0.14]
[1625110397312,0.11237856,2203.1,2202.1,0.14]
[1625110397912,5.62857856,2203.1,2202.1,0.14]
[1625110398013,8.07216591,2203.0,2202.1,0.14]
[1625110398113,5.01,2202.9,2202.1,0.14]
[1625110398212,5.01,2202.8,2202.1,0.14]
[1625110398516,18.38532621,2203.1,2202.1,0.14]
[1625110399032,5.01,2202.9,2202.1,0.14]
[1625110399333,13.37532621,2203.1,2202.1,0.14]
[1625110399435,12.48999907,2203.1,2202.1,0.14]
[1625110399536,10.75369907,2203.1,2202.1,0.14]
[1625110399837,5.01,2202.9,2202.1,0.14]
[1625110400040,12.55564864,2202.9,2202.1,0.14]
[1625110400336,5.01,2202.9,2202.1,0.14]
[1625110400437,1.6943,2203.0,2202.1,0.14]
[1625110401172,5.01,2202.9,2202.1,0.14]
[1625110401367,9.8825,2202.9,2202.1,0.14]
[1625110401466,4.8725,2202.9,2202.1,0.14]
[1625110402168,12.42223269,2202.9,2202.1,0.14]
[1625110402270,12.42223269,2202.9,2201.8,0.00696076]
[1625110402368,12.42223269,2202.9,2201.9,0.14]
[1625110402971,4.8725,2202.9,2201.9,5.15]
[1625110403070,1.7526,2203.0,2202.0,7.53897505]
[1625110403171,1.7526,2203.0,2202.0,7.59600803]
[1625110403317,5.01,2203.2,2202.0,7.73600803]
[1625110403420,7.52512895,2203.1,2202.0,0.14]
[1625110403724,5.01,2203.2,2202.0,5.15]
[1625110403822,5.01,2203.3,2202.0,0.14]
[1625110403919,12.78880452,2203.2,2202.0,0.14]
[1625110404020,5.01,2203.3,2202.0,0.14]
[1625110404321,12.58030283,2203.2,2202.0,0.14]
[1625110404618,12.58030283,2203.2,2202.0,5.15]
[1625110404720,5.01,2203.2,2202.0,5.15]
[1625110404819,7.50341016,2203.1,2202.0,1.11361138]
[1625110404921,7.50341016,2203.1,2202.1,0.14]
[1625110405024,7.99442516,2203.4,2202.1,0.14]
[1625110405124,10.7345,2203.5,2202.1,0.14]
[1625110405222,10.7345,2203.5,2202.1,10.28577027]
[1625110405323,7.39268555,2203.4,2202.1,18.28577027]
[1625110405426,7.63746743,2203.4,2202.1,10.7468307]
[1625110405573,7.49239547,2203.4,2202.1,10.7468307]
[1625110405874,7.44239547,2203.4,2202.2,14.47915696]
[1625110406072,7.44239547,2203.4,2202.3,0.1]
[1625110406175,10.7345,2203.5,2202.4,5.01]
[1625110406276,7.9637664,2203.6,2202.4,9.6075]
[1625110406374,7.9637664,2203.6,2202.5,12.64616027]
[1625110406473,21.6168,2203.7,2202.5,12.78616027]
[1625110406573,10.7377,2203.7,2202.6,5.01]
[1625110406675,10.7377,2203.7,2202.7,7.51368967]
[1625110406779,5.01,2203.9,2202.7,7.65404061]
[1625110406977,5.01,2203.7,2202.7,7.65404061]
[1625110407192,5.01,2203.7,2202.7,0.14]
[1625110407281,5.01,2203.7,2202.7,7.68421907]
[1625110407380,5.01,2203.9,2202.7,0.95786711]
[1625110407479,7.41660678,2203.7,2202.7,0.14]
[1625110408592,5.01,2203.9,2202.7,0.14]
[1625110408669,5.01,2204.0,2202.7,0.14]
[1625110408872,12.7855239,2203.9,2202.7,0.14]
[1625110409070,5.01,2203.8,2202.7,0.14]
[1625110409169,8.0,2203.0,2202.7,0.14]
[1625110409370,7.57593727,2203.7,2202.8,17.0]
[1625110409475,5.01,2203.8,2202.8,17.0]
[1625110409571,0.11234834,2203.7,2202.8,17.0]
[1625110409672,5.12234834,2203.7,2202.8,17.0]
[1625110409773,0.11234834,2203.7,2202.8,17.0]
[1625110409875,7.36150977,2203.7,2202.8,17.0]
[1625110410216,7.36150977,2203.7,2202.8,14.30942463]
[1625110410319,0.11234834,2203.7,2202.8,14.30942463]
[1625110410921,0.06234834,2203.7,2202.8,14.30942463]
[1625110411426,0.06234834,2203.7,2202.8,21.11566463]
[1625110411625,5.01,2203.6,2202.8,21.11566463]
[1625110411923,0.06234834,2203.7,2202.8,21.11566463]
[1625110412122,0.06234834,2203.7,2202.9,0.14]
[1625110412224,0.06234834,2203.7,2202.9,4.5563]
[1625110412470,0.06234834,2203.7,2202.9,5.1793]
[1625110412922,0.06234834,2203.7,2202.9,11.98533]
[1625110413023,0.06234834,2203.7,2203.1,5.01]
[1625110413422,0.06234834,2203.7,2203.2,0.14]
[1625110414463,0.06234834,2203.7,2203.3,6.80486]
[1625110414668,0.06234834,2203.7,2203.4,0.14]
[1625110414871,0.06234834,2203.7,2203.4,4.5213]
[1625110414972,0.06234834,2203.7,2203.4,0.48612235]
[1625110415976,5.01,2204.1,2203.3,0.14]
[1625110415977,7.46719089,2204.0,2203.3,0.14]
[1625110416174,7.19190692,2204.0,2203.3,0.14]
[1625110416482,5.01,2203.8,2203.3,0.14]
[1625110416676,7.19190692,2204.0,2203.3,0.14]
[1625110416819,7.16859038,2204.0,2203.3,0.14]
[1625110416922,7.16859038,2204.0,2203.0,5.15]
[1625110417027,6.80657,2204.0,2203.0,5.15]
[1625110417179,5.01,2204.4,2203.0,5.15]
[1625110417275,12.26313013,2204.4,2203.1,0.06]
[1625110417375,5.01,2204.3,2203.1,19.12058577]
[1625110417474,5.01,2204.2,2203.2,0.14]
[1625110417573,12.1634527,2204.2,2203.2,0.14]
[1625110417722,5.01,2204.2,2203.2,0.14]
[1625110418021,7.21027065,2204.1,2203.2,0.14]
[1625110418477,5.01,2204.2,2203.2,0.14]
[1625110418575,7.20912603,2204.1,2203.1,29.0498444]
[1625110418676,7.20912603,2204.1,2203.2,0.14]
[1625110418875,5.01,2204.2,2203.2,0.14]
[1625110418975,12.59178944,2204.3,2203.2,0.14]
[1625110419313,12.59178944,2204.3,2203.3,0.06]
[1625110419512,12.59178944,2204.3,2203.4,0.14]
[1625110420421,19.39670944,2204.3,2203.4,6.94453]
[1625110420816,7.58178944,2204.3,2203.4,21.94453]
[1625110420916,1.0,2204.4,2203.4,21.94453]
[1625110421017,1.0,2204.4,2203.4,29.94453]
[1625110421018,7.10309824,2204.3,2203.4,29.94453]
[1625110421316,17.03057051,2204.5,2203.4,14.94453]